[Event "15th Chennai GM Open 2025"]
[Site "Chennai"]
[Date "2025.01.08"]
[Round "9.4"]
[White "Das, Sayantan"]
[Black "Venkatesh, M.R."]
[Result "0-1"]
[ECO "C71"]
[WhiteElo "2434"]
[BlackElo "2362"]
[Annotator "TA"]
[PlyCount "92"]
[EventDate "2025.01.02"]
[EventType "swiss"]
[EventCountry "IND"]
[SourceTitle "playchess.com"]
[Source "ChessBase"]
[SourceQuality "1"]
[TimeControl "5400+30"]

{[%evp 9,92,17,14,14,16,12,16,14,14,19,19,11,20,24,23,17,27,22,32,31,33,0,-11,-64,-62,-197,-212,-212,-203,-206,-210,-204,-201,-214,-32,-192,-204,-186,-199,-206,-207,-190,-185,-289,-290,-342,-354,-318,-134,-127,0,0,0,0,0,-110,-94,-201,-197,-230,-226,-231,-206,-223,-221,-260,-273,-529,-521,-531,-511,-644,-648,-695,-656,-822,-747,-812,-779,-2751,-611,-611,-576,-564,-563]} 1. e4 {[%emt 0:01:07]} e5 {[%emt 0:02:57]} 2. Nf3 {[%emt 0:00:15]} Nc6 {[%emt 0:00:06]} 3. Bb5 {[%emt 0:00:08]} a6 {[%emt 0:00:11]} 4. Ba4 {[%emt 0:00:05]} d6 {[%emt 0:00:49]} 5. c4 {[%emt 0:04:24]} Bg4 {[%emt 0:00:30]} 6. d3 {[%emt 0:02:33]} Nf6 {[%emt 0:03:30]} 7. Be3 {[%emt 0:01:19]} g6 {[%emt 0:09:54]} 8. h3 {[%emt 0:12:24]} Bxf3 {[%emt 0:01:37]} 9. Qxf3 {[%emt 0:00:09]} Bg7 {[%emt 0:00:07]} 10. Nc3 {[%emt 0:02:28]} O-O {[%emt 0:03:02]} 11. Bxc6 {[%emt 0:06:50]} bxc6 {[%emt 0:00:14]} 12. g4 {[%emt 0:00:27]} Rb8 {[%emt 0:19:28]} 13. O-O-O {[%emt 0:02:07]} Nd7 {[%emt 0:13:17]} 14. h4 {[%emt 0:05:37]} h6 {[%emt 0:00:58]} 15. Ne2 {[%emt 0:10:31]} d5 {[%emt 0:01:48]} 16. Ng3 {[%emt 0:03:46]} (16. exd5 Rxb2 17. Rd2 e4 18. Qxe4 Re8 $17) (16. Kb1 $11) 16... Qe7 $15 {[%emt 0:03:33]} (16... Rb7 {looks sharper.} 17. Kc2 Qe7 18. h5 Qb4) 17. Qe2 {[%emt 0:07:55]} (17. exd5 Rxb2 18. Rd2 Rfb8 $17) (17. cxd5 $15 cxd5 18. Kb1 (18. exd5 Rxb2 19. Rd2 Rb4 $17)) 17... d4 $19 {[%emt 0:03:40]} 18. Bd2 {[%emt 0:00:34]} Nc5 {[%emt 0:00:33][%cal Bd7c5,Bc5a4,Ba4b2][%mdl 32]} 19. Kc2 {[%emt 0:18:15]} Na4 $1 {[%emt 0:02:43]} 20. Rb1 {[%emt 0:00:59]} Rb7 $1 {[%emt 0:01:00]} 21. Qe1 {[%emt 0:01:38] [#]} a5 $2 {[%emt 0:08:48]} (21... Rfb8 $1 $19 {[%mdl 512]} 22. Bc1 Nc3) 22. Ne2 $2 {[%emt 0:01:59] [#]} ({White should play} 22. Qc1 $1 $15) 22... Nxb2 $1 {[%emt 0:01:54]} 23. Rxb2 {[%emt 0:04:00]} Rxb2+ {[%emt 0:00:08]} 24. Kxb2 {[%emt 0:00:05][%cal Oe1c1]} Rb8+ {[%emt 0:00:04]} 25. Ka1 {[%emt 0:05:50][%cal Oe1c1]} Qa3 {[%emt 0:00:09]} 26. Qc1 {[%emt 0:01:36] Dodges Qb2+} (26. Bc3 $142) 26... Qxd3 {[%emt 0:00:20]} 27. Ng3 {[%emt 0:00:09]} Bf8 $1 {[%emt 0:03:29]} 28. c5 {[%emt 0:00:22]} (28. Bxh6 $2 Bb4 $19 (28... Bxh6 $2 29. Rd1 $19)) (28. Bxa5 Ba3 29. Qd2 Bb2+ (29... Qxc4 30. Rb1 $17) 30. Qxb2 Rxb2 31. Kxb2 Qxc4 $19) 28... Rb5 {[%emt 0:00:30]} (28... Bxc5 $1 $19 {Threatens to win with ...Ba3.} 29. Qxc5 Qxd2) 29. Rd1 $17 {[%emt 0:01:39][%cal Od2e3] [#] And now Be3! would win.} Rxc5 {[%emt 0:02:04] Black is much more active.} (29... Bxc5 30. Be3 (30. Bxh6 $2 Qf3 $19) 30... Qa3 31. Qxa3 (31. Bxh6 $2 Qf3 $19) 31... Bxa3 32. Bc1 $14 (32. Bxh6 Bb2+ 33. Kb1 Ba3+ 34. Ka1 Bb2+ 35. Kb1 Ba3+ 36. Ka1 $11)) (29... Qf3 $1 $17 30. Be1 Qxg4 (30... Rxc5 31. Qb1 $17) (30... Bxc5 31. Qc2 $11)) 30. Qb1 $1 $36 {[%emt 0:00:36][%mdl 2048] White is more active.} Qf3 $1 {[%emt 0:09:48][%csl LRf2,LRg4][%cal Oc5b5]} 31. Qb3 {[%emt 0:00:34]} Qxg4 {[%emt 0:01:26][%cal Oc5b5]} (31... Qxf2 32. Rf1 a4 33. Rxf2 $18) 32. Rh1 {[%emt 0:00:49]} (32. a4 $1 $11 {keeps the balance.}) 32... Rb5 $17 {[%emt 0:01:31]} 33. Qd3 {[%emt 0:00:24]} (33. Qc4 $17) 33... h5 $19 {[%emt 0:03:25]} 34. Rc1 {[%emt 0:01:00] [#]} Bb4 $1 {[%emt 0:01:24]} (34... Qxh4 35. Rxc6 Rc5 36. Rxc5 Bxc5 37. Bxa5) 35. Bxb4 {[%emt 0:02:18]} Rxb4 {[%emt 0:00:02]} 36. Rxc6 {[%emt 0:01:20]} Qf4 {[%emt 0:02:14]} 37. Rc2 {[%emt 0:01:46]} c5 {[%emt 0:00:27]} ({But not} 37... Qxh4 38. Rxc7 Qf4 39. Rc2 $19) 38. Qd2 $2 {[%emt 0:01:00]} (38. Rxc5 Qxf2 (38... Qxh4 39. Rxe5 Qh2 40. Re8+ Kh7 41. a3 $17) 39. Ne2) 38... c4 {[%emt 0:00:42]} (38... Qxh4 $2 39. Rxc5 Qg4 40. Rxa5 $19) 39. Qxf4 {[%emt 0:00:30]} exf4 {[%emt 0:00:03][%mdl 4096] Endgame KRN-KR} 40. Nf1 {[%emt 0:00:30]} c3 {[%emt 0:00:26] Prevents Nd2.} 41. f3 {[%emt 0:00:29]} Kg7 {[%emt 0:00:37]} 42. a3 {[%emt 0:00:26]} Rc4 {[%emt 0:00:14]} 43. Kb1 {[%emt 0:00:05]} d3 {[%emt 0:01:04]} 44. Rg2 {[%emt 0:00:21]} Kf6 {[%emt 0:01:02]} (44... c2+ $142 45. Kc1 Rc3) 45. Rg5 {[%emt 0:00:21]} d2 {[%emt 0:00:30]} 46. Kc2 {[%emt 0:00:28]} Rd4 {[%emt 0:00:04] Dodges Rd5} ({Less strong is} 46... d1=R 47. Kxd1 Ra4 48. Kc2 Rxa3 49. Kb1 $15) 0-1

[Event "15th Chennai GM Open 2025"]
[Site "Chennai"]
[Date "2025.01.08"]
[Round "9.5"]
[White "Vaz, Ethan"]
[Black "Mohamed Anees M"]
[Result "1-0"]
[ECO "C41"]
[WhiteElo "2412"]
[BlackElo "2334"]
[Annotator "TA"]
[PlyCount "79"]
[EventDate "2025.01.02"]
[EventType "swiss"]
[EventCountry "IND"]
[SourceTitle "playchess.com"]
[Source "ChessBase"]
[SourceQuality "1"]
[TimeControl "5400+30"]

{[%evp 15,79,37,42,24,44,26,31,50,49,43,34,28,86,0,95,110,105,104,250,249,312,304,306,308,270,282,252,244,332,337,638,618,597,551,543,272,267,250,551,532,531,536,1099,1097,5246,5246,5235,5235,2100,760,1317,615,694,691,692,682,679,651,1612,1583,29987,29988,29982,887,29966,29964]} 1. e4 {[%emt 0:01:12]} d6 {[%emt 0:00:15]} 2. d4 {[%emt 0:00:40]} Nf6 {[%emt 0:00:07]} 3. Nc3 {[%emt 0:00:04]} e5 {[%emt 0:00:04]} 4. Nf3 {[%emt 0:00:27]} Nbd7 {[%emt 0:00:07]} 5. Bc4 {[%emt 0:00:26]} Be7 {[%emt 0:00:06]} 6. O-O {[%emt 0:00:29]} O-O {[%emt 0:00:07]} 7. a4 {[%emt 0:00:09]} c6 {[%emt 0:00:06]} 8. Re1 {[%emt 0:01:58]} h6 {[%emt 0:01:08]} 9. Ba2 {[%emt 0:22:52]} Re8 {[%emt 0:08:41]} 10. h3 {[%emt 0:06:59]} Bf8 {[%emt 0:05:27]} 11. Be3 {[%emt 0:04:30]} b6 {[%emt 0:17:33]} 12. Qd3 {[%emt 0:10:06]} Bb7 {[%emt 0:04:37]} 13. Rad1 {[%emt 0:03:46]} (13. a5 {keeps more tension.} exd4 14. Bxd4 bxa5 15. Qc4) 13... Qc8 {[%emt 0:21:08]} (13... Qe7 $11) 14. Qd2 {[%emt 0:20:54]} ({White should play} 14. Bc1 $16) 14... a6 {[%emt 0:06:01] [#]} (14... b5 $11 {keeps the balance.}) 15. dxe5 $1 $16 {[%emt 0:07:27]} dxe5 {[%emt 0:00:48]} 16. Nh4 {[%emt 0:01:50][%cal Bf3h4,Bh4f5,Bf5h6][%mdl 32] White is much more active.} b5 {[%emt 0:10:07]} (16... c5 $16) 17. Nf5 $18 {[%emt 0:02:14][%cal Re3h6]} c5 {[%emt 0:09:39][%cal Bc6c5,Bc5c4][%mdl 32] [#]} 18. Bxh6 $1 {[%emt 0:05:12][%mdl 512]} gxh6 {[%emt 0:01:36]} 19. Nxh6+ {[%emt 0:00:14]} (19. axb5 c4 $11) 19... Kh7 {[%emt 0:00:41]} 20. Nf5 {[%emt 0:01:28]} (20. Nxf7 c4 $16) 20... c4 {[%emt 0:01:52]} 21. Qg5 {[%emt 0:02:27] Re3 would now be deadly.} ({But not} 21. axb5 $6 Kh8 $16) 21... Re6 {[%emt 0:03:51][%cal Be8e6,Be6g6,Bg6g2][%mdl 32]} 22. Re3 {[%emt 0:00:02]} (22. axb5 Kh8 $16) 22... Nxe4 $2 {[%emt 0:03:19]} (22... Ng8 23. Qh5+ (23. axb5 Rg6 $16) 23... Nh6 24. Nxh6 (24. axb5 Nf6 $11) 24... Nf6 25. Qxf7+ Kxh6) 23. Nxe4 {[%emt 0:02:05] Qh5+ would kill now.} Rg6 {[%emt 0:00:05]} 24. Qh4+ {[%emt 0:01:49]} Kg8 {[%emt 0:00:09]} 25. Ne7+ {[%emt 0:01:45]} Bxe7 {[%emt 0:00:05]} 26. Qxe7 $40 {[%emt 0:00:02][%mdl 128] White has strong attack.} Bxe4 $2 {[%emt 0:01:29]} (26... Bc6 27. Ng3 Qb7) 27. Rxd7 {[%emt 0:00:42]} (27. Qxd7 Qxd7 (27... Bxc2 28. Qxc8+ Rxc8 29. Rc1 $14) (27... Bxg2 28. Kh2 $15) (27... Rxg2+ 28. Kf1 $11) 28. Rxd7 Bxg2 $15 (28... Rxg2+ 29. Kf1 $14)) ({Less strong is} 27. Rxe4 Nf6 28. Re3 (28. Rxe5 Qxh3 29. Qb7 Ra7 $11) 28... Qc6 $18) 27... Rxg2+ {[%emt 0:02:30]} 28. Kf1 {[%emt 0:00:09]} Rg7 {[%emt 0:00:31]} 29. Rxe4 {[%emt 0:00:13]} Qc6 {[%emt 0:00:05]} 30. Rd8+ {[%emt 0:00:21]} Rxd8 {[%emt 0:00:05]} 31. Qxd8+ {[%emt 0:00:02]} Kh7 {[%emt 0:00:07]} 32. Qh4+ {[%emt 0:01:08]} Kg8 {[%emt 0:00:06]} 33. Rxe5 {[%emt 0:02:03]} Qd7 {[%emt 0:00:52] Inhibits Qd8+.} 34. Ke2 {[%emt 0:00:35] Wards off Qd1+} Rg6 {[%emt 0:00:07]} 35. Bb1 {[%emt 0:00:47]} c3 {[%emt 0:02:16]} 36. bxc3 {[%emt 0:00:05]} bxa4 {[%emt 0:00:29]} 37. Ba2 {[%emt 0:00:31]} Qc6 {[%emt 0:00:40]} 38. Qd8+ {[%emt 0:00:27]} Kg7 {[%emt 0:00:05]} 39. Qd4 {[%emt 0:00:20]} (39. Bxf7 $142 Rg1 40. Bd5 (40. Qg8+ Kf6 $18) 40... Re1+ 41. Kd2 (41. Kxe1 Qxc3+ 42. Kf1 Qxe5 $18) 41... Rxe5 42. Qg8+ (42. Bxc6 Rf5 $18) 42... Kf6 43. Qf7+ (43. Bxc6 a5 $18) 43... Kg5 44. Bxc6) 39... Kg8 {[%emt 0:01:33]} 40. Rh5 {[%emt 0:00:38]} 1-0

[Event "15th Chennai GM Open 2025"]
[Site "Chennai"]
[Date "2025.01.08"]
[Round "9.6"]
[White "Sammed Jaykumar, Shete"]
[Black "Manish Anto Cristiano F"]
[Result "1-0"]
[ECO "C54"]
[WhiteElo "2379"]
[BlackElo "2328"]
[Annotator "TA"]
[PlyCount "55"]
[EventDate "2025.01.02"]
[EventType "swiss"]
[EventCountry "IND"]
[SourceTitle "playchess.com"]
[Source "ChessBase"]
[SourceQuality "1"]
[TimeControl "5400+30"]

{[%evp 11,55,0,10,12,12,4,11,0,0,6,13,18,45,40,31,31,43,31,43,7,14,0,0,1,0,-10,-5,0,0,0,0,0,0,0,8,-20,-21,-20,14,14,29982,29981,29993,29994,29994,29995]} 1. e4 {[%emt 0:00:04]} e5 {[%emt 0:00:11]} 2. Nf3 {[%emt 0:00:19]} Nc6 {[%emt 0:00:19]} 3. Bc4 {[%emt 0:00:12]} Bc5 {[%emt 0:00:21]} 4. c3 {[%emt 0:00:09]} Nf6 {[%emt 0:00:08]} 5. d3 {[%emt 0:00:06]} O-O {[%emt 0:00:17]} 6. Bb3 {[%emt 0:00:17]} d6 {[%emt 0:04:39]} 7. h3 {[%emt 0:00:30]} a5 {[%emt 0:00:22]} 8. O-O {[%emt 0:00:52]} h6 {[%emt 0:01:05]} 9. Re1 {[%emt 0:00:21]} Ba7 {[%emt 0:01:09]} 10. Nbd2 {[%emt 0:01:10]} Be6 {[%emt 0:03:16]} 11. Bc2 {[%emt 0:01:14]} Ne7 {[%emt 0:03:51]} 12. Nf1 {[%emt 0:00:47]} Ng6 {[%emt 0:00:09]} 13. Ng3 {[%emt 0:04:04]} c5 {[%emt 0:01:40]} 14. Be3 {[%emt 0:11:32]} d5 {[%emt 0:10:36]} 15. d4 {[%emt 0:07:47]} Nxe4 {[%emt 0:12:38]} 16. Nxe4 {[%emt 0:02:30]} dxe4 {[%emt 0:01:34]} 17. Nxe5 {[%emt 0:00:54]} cxd4 {[%emt 0:00:35]} 18. Bxd4 {[%emt 0:01:47]} Nxe5 {[%emt 0:09:18]} 19. Bxe5 {[%emt 0:00:19]} e3 {[%emt 0:07:18]} 20. fxe3 {[%emt 0:03:34]} Qg5 {[%emt 0:01:09][%csl LRe3,LRe5,LRh3]} 21. Bd4 {[%emt 0:01:45]} Bxh3 {[%emt 0:02:14][%csl Gh3][%cal Rg5g2]} 22. Qf3 {[%emt 0:00:35][%csl LRb7,LRh3]} Bg4 {[%emt 0:01:51]} 23. Qxb7 {[%emt 0:20:57] [#]} Bb8 $1 {[%emt 0:02:43]} 24. Qe4 {[%emt 0:02:14] [#]} (24. Qxa8 Bh2+ 25. Kxh2 Rxa8 $17) 24... g6 $1 {[%emt 0:05:55] and ...Bg3 would now be decisive} 25. Rf1 $1 $40 {[%emt 0:00:41][%cal Of1f7][%mdl 128] and Rxf7! should not be overlooked Black needs to defend precisely.} ({But not} 25. Qxa8 Bh2+ 26. Kxh2 Rxa8 $17) 25... Bg3 $2 {[%emt 0:02:53][%mdl 8192] [#]} (25... Qh5 $11 26. Rf4 Bf5 (26... Bxf4 27. Qxf4 Qg5 28. Qxg5 $14)) 26. Rxf7 $3 {[%emt 0:01:24][%mdl 512]} Rxf7 {[%emt 0:14:46]} (26... Ra7 27. Rxf8+) 27. Qxa8+ {[%emt 0:00:51]} Rf8 {[%emt 0:00:13]} 28. Bb3+ {[%emt 0:00:13]} 1-0

[Event "15th Chennai GM Open 2025"]
[Site "Chennai"]
[Date "2025.01.08"]
[Round "9.7"]
[White "Sanket Chakravarty"]
[Black "Ajay Santhosh Parvathareddy"]
[Result "0-1"]
[ECO "C10"]
[WhiteElo "2374"]
[BlackElo "2292"]
[Annotator "TA"]
[PlyCount "156"]
[EventDate "2025.01.02"]
[EventType "swiss"]
[EventCountry "IND"]
[SourceTitle "playchess.com"]
[Source "ChessBase"]
[SourceQuality "1"]
[TimeControl "5400+30"]

{[%evp 46,156,9,8,8,9,11,0,0,-35,-44,-39,-44,-32,-21,-76,-66,-152,-158,-143,-143,-208,-210,-198,-202,-191,-125,-197,-197,-204,-204,-190,-199,-528,-523,-683,-642,-655,-665,-648,-639,-616,-336,-379,-378,-377,-363,-374,-374,-384,-384,-384,-384,-391,-384,-384,-377,-377,-373,-475,-475,-465,-465,-580,-410,-800,-789,-1183,-763,-5497,-5161,-29948,-29950,-29946,-29945,-29955,-29957,-29954,-29957,-29959,-29958,-29957,-12797,-12835,-6045,-29969,-29971,-29980,-29980,-29980,-29964,-29972,-29970,-29971,-29972,-29977,-29975,-29975,-29974,-29972,-29973,-29981,-29979,-29978,-29974,-29988,-29983,-29989,-29987,-29992,-29987,-29991,-29988]} 1. Nc3 {[%emt 0:08:36]} d5 {[%emt 0:00:03]} 2. d4 {[%emt 0:00:09]} Nf6 {[%emt 0:00:06]} 3. Nf3 {[%emt 0:00:11]} e6 {[%emt 0:00:04]} 4. Bg5 {[%emt 0:00:51]} Nbd7 {[%emt 0:05:37]} 5. e4 {[%emt 0:02:15]} dxe4 {[%emt 0:00:11]} 6. Nxe4 {[%emt 0:00:08]} Be7 {[%emt 0:01:35]} 7. Nxf6+ {[%emt 0:03:09]} Bxf6 {[%emt 0:01:03]} 8. Bxf6 {[%emt 0:02:17]} Nxf6 {[%emt 0:02:30]} 9. Bd3 {[%emt 0:00:39]} O-O {[%emt 0:00:10]} 10. O-O {[%emt 0:00:15]} b6 {[%emt 0:00:14]} 11. Qe2 {[%emt 0:01:46]} Bb7 {[%emt 0:00:27]} 12. Rad1 {[%emt 0:00:18]} Qe7 {[%emt 0:00:18]} 13. Ba6 {[%emt 0:07:41]} Bxa6 {[%emt 0:04:41]} 14. Qxa6 {[%emt 0:00:07]} c5 {[%emt 0:00:38]} 15. Rfe1 {[%emt 0:05:37]} Rfd8 {[%emt 0:02:18]} 16. Qa3 {[%emt 0:07:16]} Qd6 {[%emt 0:01:01]} 17. Qa4 {[%emt 0:04:53]} Qf4 {[%emt 0:14:58]} 18. Qc6 {[%emt 0:05:05]} Rdc8 {[%emt 0:00:18]} 19. Qb7 {[%emt 0:00:25]} Qc7 {[%emt 0:00:29]} 20. Qxc7 {[%emt 0:01:33]} Rxc7 {[%emt 0:00:05]} 21. c4 {[%emt 0:00:15]} cxd4 {[%emt 0:00:25]} 22. Rxd4 {[%emt 0:00:09]} Rd7 {[%emt 0:02:16]} 23. Rxd7 {[%emt 0:01:10]} Nxd7 {[%emt 0:00:04]} 24. Rd1 {[%emt 0:00:08]} Nf6 {[%emt 0:00:06]} 25. Ne5 {[%emt 0:00:19]} Kf8 {[%emt 0:00:06]} 26. b4 {[%emt 0:00:43]} Ke8 {[%emt 0:02:51]} 27. b5 {[%emt 0:03:51]} a6 {[%emt 0:00:13]} 28. a4 {[%emt 0:00:13]} Ne4 {[%emt 0:02:07]} 29. f4 {[%emt 0:16:41]} Nc5 {[%emt 0:02:40]} 30. Nc6 {[%emt 0:10:06]} (30. Rd6 $11 {remains equal.} axb5 (30... Nxa4 31. bxa6 Rxa6 32. Rc6 $11) 31. cxb5) 30... f6 $17 {[%emt 0:05:24]} (30... Nxa4 $2 31. bxa6 Nc5 32. a7 $18) 31. a5 {[%emt 0:06:49]} (31. Kf2 $15) 31... bxa5 $1 $17 {[%emt 0:11:28]} 32. b6 {[%emt 0:00:04]} a4 {[%emt 0:00:06]} 33. f5 {[%emt 0:00:13]} (33. Kf2 $17) 33... Rc8 $1 $19 {[%emt 0:00:53]} (33... exf5 34. Rd5 Nb7 35. Na5 Nxa5 36. Rxa5 $17) 34. Na5 {[%emt 0:02:58]} exf5 {[%emt 0:04:08]} 35. Rd5 {[%emt 0:00:53]} Nb3 {[%emt 0:01:59]} (35... Rb8 $1 $19 {[%cal Rb8b6] White must now prevent ...Rxb6!.} 36. Rxc5 Rxb6 37. Rxf5 a3) 36. Rxf5 {[%emt 0:02:32] [#]} (36. Nxb3 $17 {might work better.} axb3 37. Rd3) 36... Rb8 $1 $19 {[%emt 0:05:35]} 37. b7 {[%emt 0:00:02] [#]} Kd7 $1 {[%emt 0:00:40]} 38. Kf2 {[%emt 0:02:34]} Kc7 {[%emt 0:00:04]} 39. Ke1 $2 {[%emt 0:00:07]} (39. Rd5 {is a better chance.}) 39... Re8+ $19 {[%emt 0:02:37]} (39... g6 40. Rd5 $11) 40. Kd1 {[%emt 0:00:29]} Rd8+ {[%emt 0:00:06]} 41. Ke1 {[%emt 0:00:04]} g6 {[%emt 0:00:53]} 42. Rxf6 {[%emt 0:03:42]} Nxa5 {[%emt 0:00:12]} 43. Rxa6 {[%emt 0:00:01]} Nxc4 {[%emt 0:00:38]} ({Worse is} 43... Kxb7 44. Rxa5 Re8+ 45. Kd2 $11) 44. Ra8 {[%emt 0:00:14]} Rb8 {[%emt 0:00:12]} 45. Rxa4 {[%emt 0:00:04]} Nd6 {[%emt 0:00:34]} 46. Rh4 {[%emt 0:00:06]} Rh8 {[%emt 0:00:04]} (46... Kxb7 47. Rxh7+ Kc6 48. h4 $17) 47. Ke2 {[%emt 0:00:09]} Kxb7 {[%emt 0:00:12]} 48. Kf3 {[%emt 0:00:04]} Kc6 {[%emt 0:00:05]} 49. Kf4 {[%emt 0:00:12]} Nf7 {[%emt 0:00:04]} 50. Rh3 {[%emt 0:00:13]} Kd7 {[%emt 0:00:04]} 51. Ra3 {[%emt 0:00:07]} Ke7 {[%emt 0:00:04]} 52. h4 {[%emt 0:00:14]} Rb8 {[%emt 0:00:11]} 53. Ra4 {[%emt 0:00:13]} Kf6 {[%emt 0:00:17]} 54. g4 {[%emt 0:00:06]} Rb5 {[%emt 0:00:27]} 55. Rc4 {[%emt 0:01:03]} (55. Ra6+ $142 Kg7 56. Kg3) 55... h6 $19 {[%emt 0:01:48]} 56. Rc6+ {[%emt 0:02:11]} Kg7 {[%emt 0:00:04]} 57. Rc7 {[%emt 0:00:13]} g5+ {[%emt 0:00:30]} 58. hxg5 {[%emt 0:00:01]} hxg5+ {[%emt 0:00:01]} 59. Ke4 {[%emt 0:00:26]} Rb4+ {[%emt 0:00:19]} 60. Kf3 {[%emt 0:00:29]} Kf6 {[%emt 0:00:15]} 61. Rc6+ {[%emt 0:00:35]} Ke5 {[%emt 0:00:14]} 62. Rg6 {[%emt 0:00:22]} Rb3+ {[%emt 0:01:06]} 63. Kg2 {[%emt 0:00:25]} Rb5 {[%emt 0:00:39]} (63... Rd3 $142 64. Kh2 Rd6 65. Rg7 Kf6 66. Rh7 Kg6 67. Rh3 Rd2+ 68. Kh1 Rd4 69. Kh2 Rxg4 70. Rc3 Kh5 71. Kh3 Rf4 72. Rc5 Nd6 73. Kg2 Kh4 74. Rc3 g4 75. Re3 Ra4 76. Re6 Nf5 77. Re2 g3 78. Re8 Ra2+ 79. Kf1 Kg4 80. Rf8 Ne3+ 81. Ke1 g2 82. Rg8+ Kf3 83. Rg3+ Ke4 84. Rg6 Kd3 85. Rxg2 Nxg2+ 86. Kf1 Ke4 87. Kg1 Kf3 88. Kh2 Ra1 89. Kh3 Rh1#) 64. Kg3 {[%emt 0:00:20]} Rd5 {[%emt 0:01:13]} 65. Rg7 {[%emt 0:01:10]} Kf6 {[%emt 0:00:08]} 66. Rg8 {[%emt 0:00:02]} Rd3+ {[%emt 0:00:05]} 67. Kg2 {[%emt 0:00:17]} Nh6 {[%emt 0:00:09]} 68. Rf8+ {[%emt 0:01:40]} Kg6 {[%emt 0:00:42]} 69. Ra8 {[%emt 0:00:45]} Nxg4 {[%emt 0:00:07]} 70. Ra2 {[%emt 0:00:02]} Rc3 {[%emt 0:00:12]} 71. Ra6+ {[%emt 0:00:06]} Kh5 {[%emt 0:00:07]} 72. Ra8 {[%emt 0:00:07]} Ne5 {[%emt 0:00:13]} 73. Ra2 {[%emt 0:00:23]} Kh4 {[%emt 0:00:17]} 74. Re2 {[%emt 0:00:14]} Nc4 {[%emt 0:00:25]} 75. Kh2 {[%emt 0:00:37]} g4 {[%emt 0:00:16]} 76. Ra2 {[%emt 0:00:14]} g3+ {[%emt 0:00:05]} 77. Kg1 {[%emt 0:00:06]} Rc1+ {[%emt 0:00:02]} 78. Kg2 {[%emt 0:00:04]} Rc2+ {[%emt 0:00:03]} 0-1

[Event "15th Chennai GM Open 2025"]
[Site "Chennai"]
[Date "2025.01.08"]
[Round "9.9"]
[White "Madhvendra Pratap Sharma"]
[Black "Fedorov, Alexei"]
[Result "1/2-1/2"]
[ECO "B40"]
[WhiteElo "2281"]
[BlackElo "2409"]
[Annotator "TA"]
[PlyCount "101"]
[EventDate "2025.01.02"]
[EventType "swiss"]
[EventCountry "IND"]
[SourceTitle "playchess.com"]
[Source "ChessBase"]
[SourceQuality "1"]
[TimeControl "5400+30"]

{[%evp 9,101,18,12,12,15,10,16,0,0,8,27,20,19,8,10,9,20,10,11,16,36,14,15,0,35,35,30,15,23,-1,-6,-14,-8,-1,-8,-8,-8,-14,0,0,0,0,0,8,0,0,0,0,0,0,0,0,7,0,0,0,0,0,76,75,74,76,68,71,68,71,61,0,0,7,14,7,7,7,7,7,18,0,0,0,0,0,0,0,0,0,0,0,0,0,0,0,0,0]} 1. e4 {[%emt 0:00:52]} c5 {[%emt 0:00:07]} 2. Nf3 {[%emt 0:00:05]} e6 {[%emt 0:00:06]} 3. b3 {[%emt 0:00:03]} a6 {[%emt 0:01:28]} 4. Bb2 {[%emt 0:00:09]} d5 {[%emt 0:01:05]} 5. exd5 {[%emt 0:00:21]} exd5 {[%emt 0:00:04]} 6. Qe2+ {[%emt 0:01:43]} Be6 {[%emt 0:02:50]} 7. g3 {[%emt 0:00:15]} Nc6 {[%emt 0:00:16]} 8. d3 {[%emt 0:00:40]} h6 {[%emt 0:02:42]} 9. Bh3 {[%emt 0:06:39]} Qe7 {[%emt 0:00:12]} 10. Bxe6 {[%emt 0:00:06]} Qxe6 {[%emt 0:00:03]} 11. Qxe6+ {[%emt 0:01:54]} fxe6 {[%emt 0:00:04]} 12. Nbd2 {[%emt 0:04:06]} Nf6 {[%emt 0:01:21]} 13. Ne5 {[%emt 0:18:34]} Nxe5 {[%emt 0:10:11]} 14. Bxe5 {[%emt 0:00:03]} Kd7 {[%emt 0:00:20]} 15. Bb2 {[%emt 0:06:32]} Bd6 {[%emt 0:00:32]} 16. O-O {[%emt 0:02:26]} Rhf8 {[%emt 0:07:13][%cal Bh8f8,Bf8f7,Bf7g7][%mdl 32]} 17. f4 {[%emt 0:08:20]} Rf7 {[%emt 0:01:37]} 18. Rae1 {[%emt 0:10:21]} Raf8 {[%emt 0:03:48]} 19. Be5 {[%emt 0:12:14]} g5 {[%emt 0:19:52]} 20. Nf3 {[%emt 0:09:10]} gxf4 {[%emt 0:01:02]} 21. Bxd6 {[%emt 0:00:09]} Kxd6 {[%emt 0:00:01]} 22. Ne5 {[%emt 0:00:23]} (22. gxf4 $2 Nh5 23. Kh1 Rxf4 $19 (23... Nxf4 $2 24. Nd2 $19)) 22... Rg7 {[%emt 0:00:45]} 23. Rxf4 {[%emt 0:00:12]} Nd7 {[%emt 0:00:43]} (23... Rg5 {is interesting.} 24. b4 cxb4 25. Nf3 Rg4) 24. Rxf8 {[%emt 0:00:49]} Nxf8 $11 {[%emt 0:00:03][%mdl 4096] Endgame. KRN-KRN} 25. Kg2 {[%emt 0:01:33]} Ng6 {[%emt 0:04:32]} 26. Nxg6 {[%emt 0:01:05]} Rxg6 {[%emt 0:00:04] KR-KR} 27. h3 {[%emt 0:03:55][%cal Bh2h3,Bh3h4,Bh4h5,Bh5h6,Bh6h7][%mdl 32]} b5 {[%emt 0:02:24]} 28. g4 {[%emt 0:04:44]} b4 {[%emt 0:05:10]} 29. Kg3 {[%emt 0:00:13]} a5 {[%emt 0:06:50]} 30. h4 {[%emt 0:04:08]} Rg8 {[%emt 0:01:02]} 31. Rf1 {[%emt 0:00:52]} Ke7 {[%emt 0:06:50] Inhibits Rf6.} 32. g5 {[%emt 0:02:19]} hxg5 {[%emt 0:00:20]} 33. h5 {[%emt 0:00:07]} g4 {[%emt 0:03:44]} (33... e5 $11) 34. h6 {[%emt 0:00:19] [#] And now Rh1 would win.} Rh8 {[%emt 0:02:28]} 35. Rh1 {[%emt 0:00:03][%cal Oh6h7] Hoping for h7!} Kf6 {[%emt 0:00:29]} 36. Kxg4 {[%emt 0:00:31] Strongly threatening h7.} Rg8+ {[%emt 0:04:03]} 37. Kf3 {[%emt 0:00:38] Threatens to win with h7.} Rf8 {[%emt 0:00:41]} 38. Kg4 {[%emt 0:01:44]} (38. Kf4 $14) 38... Kg6 {[%emt 0:07:02] The position is equal.} 39. h7 {[%emt 0:00:36]} Kg7 {[%emt 0:00:04]} ({Avoid the trap} 39... Rh8 $2 40. Kf4 (40. Re1 c4 $14) 40... Kf6 (40... Rxh7 41. Rxh7 Kxh7 42. Ke5 $18) 41. Rh2 $18) 40. Kg3 {[%emt 0:00:33]} Kh8 {[%emt 0:00:25]} 41. Rh6 {[%emt 0:00:39]} Rf1 {[%emt 0:00:20]} 42. Rxe6 {[%emt 0:00:05]} Rc1 {[%emt 0:00:51]} (42... c4 {simplifies} 43. bxc4 dxc4 44. dxc4 Kxh7 45. Re5 Kg6) 43. Ra6 {[%emt 0:00:29]} Rxc2 {[%emt 0:00:36]} 44. Rxa5 {[%emt 0:00:01]} c4 {[%emt 0:01:12]} 45. bxc4 {[%emt 0:01:42]} dxc4 {[%emt 0:00:07]} 46. dxc4 {[%emt 0:00:16]} Rxc4 {[%emt 0:00:07]} 47. Kf2 {[%emt 0:00:16]} Kxh7 {[%emt 0:00:26]} 48. Ke3 {[%emt 0:00:21]} b3 {[%emt 0:00:37]} 49. Kd3 {[%emt 0:00:42]} Rb4 {[%emt 0:00:07] [#] ( -> ...b2)} 50. axb3 {[%emt 0:00:24]} Rxb3+ {[%emt 0:00:49]} 51. Ke4 {[%emt 0:00:02] Weighted Error Value: White=0.05 (flawless) /Black=0.06 (flawless) .  Mistake:       	White=1     	Black=1      Inaccurate:     	---       	Black=1      OK:         	White=17    	Black=19     Best:        	White=4     	Black=5} 1/2-1/2